[Event "ROU-ch Men 2018"]
[Site "Olanesti"]
[Date "2018.05.17"]
[Round "4"]
[White "Stan, Andrei-Mihaita"]
[Black "Ileana, George"]
[Result "0-1"]
[ECO "E35"]
[WhiteElo "1860"]
[BlackElo "2325"]
[Annotator "NA"]
[PlyCount "108"]
[EventDate "2018.??.??"]
[EventType "swiss"]
[EventCountry "ROU"]
[SourceTitle "playchess.com"]
[Source "ChessBase"]
[SourceQuality "1"]
[TimeControl "40/5400+30:1800+30"]

1. d4 {[%emt 0:00:00]} Nf6 {[%emt 0:00:11]} 2. c4 {[%emt 0:00:00]} e6 {[%emt 0:00:03]} 3. Nc3 {[%emt 0:00:00]} Bb4 {[%emt 0:00:18]} 4. Qc2 {[%emt 0:00:53]} d5 {[%emt 0:00:21]} 5. cxd5 {[%emt 0:00:51]} exd5 {[%emt 0:02:04]} 6. Bg5 {[%emt 0:00:23]} h6 {[%emt 0:01:42]} 7. Bh4 {[%emt 0:00:56]} O-O {[%emt 0:00:18]} 8. e3 {[%emt 0:00:38] E35: Nimzo-Indian: Classical: 4...d5 5 cxd5 exd5} c6 {[%emt 0:00:31]} 9. Bd3 {[%emt 0:00:44]} Re8 {[%emt 0:00:55]} 10. Nf3 {[%emt 0:00:48]} Nbd7 {[%emt 0:00:09]} 11. O-O-O {[%emt 0:11:23]} ({Better is} 11. O-O $14 Be7 12. Nd2 Nh5 13. Bxe7 Qxe7 14. Rab1 a5 15. a3 Nhf6 16. b4 axb4 17. axb4 b5 18. e4 dxe4 19. Ncxe4 Nxe4 20. Bxe4 {1-0 (74) Karjakin,S (2774)-Mamedyarov,S (2746) Almaty 2016}) 11... Qa5 {[%emt 0:06:41]} 12. Nd2 {[%emt 0:08:38]} Bxc3 {[%emt 0:00:37]} 13. bxc3 {[%emt 0:00:18]} c5 {[%emt 0:00:12]} 14. dxc5 $146 {[%emt 0:02:34]} ({Predecessor:} 14. Kb1 c4 15. Bf5 Nb6 16. Bxc8 Raxc8 17. Bxf6 gxf6 18. Ka1 {1-0 (47) Cebalo,M (2438)-Bahl,F (1933) Triesen 2013}) 14... Qxc5 {[%emt 0:00:10]} 15. Nb3 {[%emt 0:01:40]} Qb6 {[%emt 0:00:14]} 16. Kb2 {[%emt 0:16:32]} Ne5 {[%emt 0:03:41]} 17. Ka1 {[%emt 0:04:49]} Bd7 {[%emt 0:05:29]} 18. Be2 {[%emt 0:08:41]} Rac8 {[%emt 0:01:54]} 19. Bf3 {[%emt 0:01:44]} Nxf3 {[%emt 0:00:50]} 20. gxf3 {[%emt 0:00:11]} Rc4 {[%emt 0:00:38]} 21. Rd4 {[%emt 0:11:19]} Ba4 {[%emt 0:00:15]} 22. Qb2 {[%emt 0:02:06]} Nd7 {[%emt 0:04:27]} 23. Nd2 {[%emt 0:02:32]} Rxd4 {[%emt 0:00:26]} 24. cxd4 {[%emt 0:01:08]} f5 {[%emt 0:05:29]} 25. Bg3 {[%emt 0:03:33]} Qxb2+ {[%emt 0:02:56]} 26. Kxb2 {[%emt 0:00:08]} Rc8 {[%emt 0:00:07]} 27. Rc1 {[%emt 0:00:20]} Rxc1 {[%emt 0:00:16]} 28. Kxc1 {[%emt 0:00:05]} Kf7 {[%emt 0:00:06]} 29. f4 {[%emt 0:13:28]} Bb5 {[%emt 0:02:27]} 30. Nf3 {[%emt 0:03:27]} Nf6 {[%emt 0:00:04]} 31. Ne5+ {[%emt 0:00:32]} Ke6 {[%emt 0:00:04]} 32. f3 {[%emt 0:00:13]} g5 {[%emt 0:00:19]} 33. fxg5 {[%emt 0:02:46]} hxg5 {[%emt 0:00:21]} 34. Be1 {[%emt 0:00:47]} f4 {[%emt 0:05:50]} 35. Bd2 {[%emt 0:00:52]} Nh5 {[%emt 0:01:57]} 36. Kc2 $11 {[%emt 0:01:14]} Be8 {[%emt 0:02:13]} 37. Kc3 {[%emt 0:00:17]} Kf5 {[%emt 0:00:32]} 38. Kb4 {[%emt 0:00:54]} b6 {[%emt 0:00:06]} 39. exf4 {[%emt 0:00:28]} Nxf4 {[%emt 0:00:18]} 40. Bxf4 {[%emt 0:00:00]} Kxf4 {[%emt 0:00:16]} 41. Kc3 {[%emt 0:03:10]} Ke3 {[%emt 0:00:26]} 42. a3 {[%emt 0:04:15]} a6 {[%emt 0:00:46]} 43. Nd3 {[%emt 0:10:55]} Kxf3 {[%emt 0:00:28]} 44. Nb4 {[%emt 0:00:07]} Bf7 {[%emt 0:00:07]} 45. Nxa6 {[%emt 0:00:42]} Kg2 {[%emt 0:00:06]} 46. Nb4 {[%emt 0:00:37]} Kxh2 {[%emt 0:00:10]} 47. Nd3 {[%emt 0:00:43]} g4 {[%emt 0:01:00]} 48. Kb4 {[%emt 0:01:01]} Be8 {[%emt 0:00:21]} 49. a4 {[%emt 0:04:28]} g3 {[%emt 0:00:06]} 50. Nf4 {[%emt 0:00:08]} g2 {[%emt 0:00:10]} 51. Nxg2 {[%emt 0:00:11]} Kxg2 {[%emt 0:00:04]} 52. a5 {[%emt 0:00:07]} bxa5+ {[%emt 0:00:04]} 53. Kc5 {[%emt 0:01:00]} a4 {[%emt 0:00:17]} 54. Kxd5 {[%emt 0:00:13]} a3 {[%emt 0:00:06]} 0-1

[Event "ROU-ch Men 2018"]
[Site "Olanesti"]
[Date "2018.05.17"]
[Round "4"]
[White "Bobocea, Laurentiu-Vlad"]
[Black "Sava, Bogdan"]
[Result "1/2-1/2"]
[ECO "D96"]
[WhiteElo "1853"]
[BlackElo "2099"]
[Annotator "NA"]
[PlyCount "56"]
[EventDate "2018.??.??"]
[EventType "swiss"]
[EventCountry "ROU"]
[SourceTitle "playchess.com"]
[Source "ChessBase"]
[SourceQuality "1"]
[TimeControl "40/5400+30:1800+30"]

1. d4 {[%emt 0:02:12]} Nf6 {[%emt 0:00:03]} 2. c4 {[%emt 0:00:07]} g6 {[%emt 0:00:11]} 3. Nc3 {[%emt 0:00:11]} d5 {[%emt 0:00:31]} 4. Nf3 {[%emt 0:00:06]} Bg7 {[%emt 0:00:58]} 5. Qb3 {[%emt 0:00:29]} dxc4 {[%emt 0:00:56]} 6. Qxc4 {[%emt 0:00:07]} a6 {[%emt 0:00:51]} 7. e4 {[%emt 0:00:37] D96: Grünfeld: Russian System (5 Qb3): sidelines} (7. Bf4 c6 8. e3 O-O 9. Be2 Bf5 10. O-O Nbd7 11. Rfd1 Rc8 12. a4 a5 13. h3 Qb6 14. Qa2 Qb4 15. Bc4 {1-0 (43) Savchenko,B (2618)-Tran,M (2399) Subic Bay 2016}) 7... b5 {[%emt 0:01:15]} 8. Qb3 {[%emt 0:00:56]} Bb7 {[%emt 0:04:18]} 9. e5 {[%emt 0:02:55]} Nd5 {[%emt 0:03:17] LiveBook: 3 Games} 10. Ne4 {[%emt 0:01:45]} Nb6 $146 {[%emt 0:02:59]} ({Predecessor:} 10... Nd7 11. e6 fxe6 12. Neg5 Nf8 13. Bxb5+ c6 14. Bc4 Rb8 {1-0 (24) Cazzaniga,W (2192)-Angelini,M (2033) Corsico 2009}) 11. Bd3 {[%emt 0:05:41]} O-O {[%emt 0:00:25]} 12. Be3 {[%emt 0:03:29]} Bd5 {[%emt 0:01:53]} 13. Qc2 {[%emt 0:01:09]} N8d7 {[%emt 0:02:49]} 14. Rc1 {[%emt 0:03:57]} Ra7 {[%emt 0:04:17]} (14... f5 $11 {remains equal.} 15. exf6 exf6) 15. h4 {[%emt 0:09:10]} Nc4 {[%emt 0:10:25]} 16. b3 {[%emt 0:09:20]} Nxe3 {[%emt 0:00:56]} 17. fxe3 {[%emt 0:00:10]} f6 {[%emt 0:13:09]} (17... c5 $1 $11 {keeps the balance.}) 18. e6 {[%emt 0:13:18]} Bxe6 {[%emt 0:04:36] [#]} 19. h5 $1 {[%emt 0:02:42]} Bf7 {[%emt 0:05:35]} 20. hxg6 {[%emt 0:08:07]} hxg6 {[%emt 0:02:36]} 21. Nc5 {[%emt 0:06:20]} (21. Ng3 $18) 21... Nxc5 {[%emt 0:10:15]} 22. Qxc5 {[%emt 0:00:08]} Ra8 $14 {[%emt 0:01:48]} 23. Nh4 {[%emt 0:03:42]} Qd6 {[%emt 0:04:44]} 24. Qxd6 {[%emt 0:06:58]} cxd6 {[%emt 0:00:11]} 25. Bxg6 {[%emt 0:04:50]} Rfc8 {[%emt 0:01:47]} 26. Kd2 {[%emt 0:01:21]} e6 {[%emt 0:01:05]} 27. Bh7+ {[%emt 0:05:00]} Kf8 {[%emt 0:01:16]} 28. Ng6+ {[%emt 0:00:34]} Ke8 {[%emt 0:08:45]} 1/2-1/2

[Event "ROU-ch Men 2018"]
[Site "Olanesti"]
[Date "2018.05.17"]
[Round "4"]
[White "Cenusa, Mihai"]
[Black "Raducanu, Andrei-Augustin"]
[Result "1-0"]
[ECO "B00"]
[WhiteElo "1819"]
[BlackElo "2063"]
[Annotator "NA"]
[PlyCount "85"]
[EventDate "2018.??.??"]
[EventType "swiss"]
[EventCountry "ROU"]
[SourceTitle "playchess.com"]
[Source "ChessBase"]
[SourceQuality "1"]
[TimeControl "40/5400+30:1800+30"]

1. e4 {[%emt 0:00:00]} d6 {[%emt 0:00:20]} 2. Nc3 {[%emt 0:00:00]} g6 {[%emt 0:01:29]} 3. Bc4 {[%emt 0:00:20]} Bg7 {[%emt 0:00:40]} 4. d4 {[%emt 0:01:36]} Nf6 {[%emt 0:01:47]} 5. f3 {[%emt 0:00:55]} a6 {[%emt 0:08:14] B07: Pirc Defence: Miscellaneous Systems} (5... O-O 6. Be3 c6 7. Bb3 b5 8. a3 d5 9. e5 Ne8 10. Qd2 f6 11. Bh6 fxe5 12. Bxg7 Nxg7 13. dxe5 e6 14. O-O-O Nd7 15. Re1 {0-1 (29) Volak,M (2182)-Kulhanek,T (2350) Czech Republic 2016}) 6. a3 {[%emt 0:01:45]} b5 {[%emt 0:01:25]} 7. Ba2 {[%emt 0:00:14]} Nbd7 $146 {[%emt 0:01:49]} ({Predecessor:} 7... Bb7 8. Be3 Nbd7 9. Qe2 e6 10. O-O-O Nb6 11. h4 d5 12. Bg5 h6 13. Bf4 {0-1 (39) Domschitz,L (2094)-Nemeth,S (2046) Hungary 2007}) 8. Be3 {[%emt 0:00:24]} O-O {[%emt 0:02:56]} 9. Nge2 {[%emt 0:00:24]} Bb7 {[%emt 0:03:28]} 10. Qd2 {[%emt 0:03:38]} Re8 {[%emt 0:07:04]} 11. g4 {[%emt 0:01:09]} Qc8 {[%emt 0:05:32]} 12. Ng3 {[%emt 0:01:59]} (12. Bh6 $142) 12... Nf8 {[%emt 0:02:12]} (12... c5 $16 {was necessary.}) 13. g5 {[%emt 0:00:40]} (13. h4 $142) 13... N6d7 {[%emt 0:00:36]} 14. h4 {[%emt 0:00:34]} c5 {[%emt 0:01:30]} 15. Nd5 {[%emt 0:09:21]} cxd4 {[%emt 0:10:40]} 16. Bxd4 {[%emt 0:00:25]} Bxd4 {[%emt 0:01:05]} 17. Qxd4 {[%emt 0:00:07]} Qxc2 {[%emt 0:00:30]} 18. O-O {[%emt 0:00:31]} Ne6 {[%emt 0:00:59]} 19. Qf2 {[%emt 0:02:55]} Qxf2+ {[%emt 0:02:59]} 20. Kxf2 {[%emt 0:00:13]} Rac8 {[%emt 0:02:49]} 21. Rac1 {[%emt 0:00:16]} Bxd5 {[%emt 0:11:16]} 22. Bxd5 {[%emt 0:01:40]} Nf4 {[%emt 0:05:58]} 23. Ke3 {[%emt 0:11:37]} Nxd5+ {[%emt 0:01:22]} 24. exd5 {[%emt 0:03:07]} Rc5 {[%emt 0:05:38]} 25. Rxc5 {[%emt 0:05:01]} dxc5 {[%emt 0:00:27]} 26. Ne4 {[%emt 0:01:01]} Rc8 {[%emt 0:13:19]} (26... f5 $17 27. gxf6 exf6) 27. Rc1 {[%emt 0:00:38]} c4 {[%emt 0:01:11]} 28. Kd4 $15 {[%emt 0:01:07]} Rd8 {[%emt 0:01:33]} 29. Nc3 {[%emt 0:00:52]} e5+ {[%emt 0:03:25]} 30. Ke3 {[%emt 0:00:42]} Nc5 {[%emt 0:01:13]} 31. Ne4 {[%emt 0:03:34]} Nd3 {[%emt 0:01:29]} 32. Nf6+ {[%emt 0:00:06]} Kg7 {[%emt 0:00:37]} 33. Rc2 {[%emt 0:00:12]} h6 {[%emt 0:00:47]} 34. Ke4 {[%emt 0:01:27]} a5 {[%emt 0:00:36]} 35. d6 {[%emt 0:00:21]} Nc5+ {[%emt 0:00:29]} 36. Kxe5 {[%emt 0:01:04]} Nd7+ {[%emt 0:00:28]} 37. Nxd7 {[%emt 0:00:10]} Rxd7 {[%emt 0:00:00]} 38. Kd5 {[%emt 0:00:19]} hxg5 {[%emt 0:00:08]} 39. hxg5 {[%emt 0:00:15]} Kf8 {[%emt 0:00:08]} 40. Re2 {[%emt 0:00:00]} b4 {[%emt 0:01:30]} 41. Kc6 {[%emt 0:00:34]} Rd8 {[%emt 0:03:33]} 42. d7 {[%emt 0:01:26]} Ra8 {[%emt 0:03:41]} 43. Kb7 {[%emt 0:00:12]} 1-0

[Event "ROU-ch Men 2018"]
[Site "Olanesti"]
[Date "2018.05.18"]
[Round "5"]
[White "Manea, Alexandru"]
[Black "Pribeanu, Mihail-Dacian"]
[Result "1-0"]
[ECO "B00"]
[WhiteElo "2402"]
[BlackElo "2119"]
[Annotator "ChessBase"]
[PlyCount "41"]
[EventDate "2018.??.??"]
[EventType "swiss"]
[EventCountry "ROU"]
[SourceTitle "playchess.com"]
[Source "ChessBase"]
[SourceQuality "1"]
[TimeControl "40/5400+30:1800+30"]

1. e4 {[%emt 0:00:00]} d6 {[%emt 0:00:00]} 2. d4 {[%emt 0:00:00]} g6 {[%emt 0:00:00]} 3. h4 {[%emt 0:00:00]} Bg7 {[%emt 0:00:00]} 4. h5 {[%emt 0:00:00]} e5 {[%emt 0:00:26]} 5. d5 {[%emt 0:00:06]} Ne7 {[%emt 0:00:16]} 6. Nc3 {[%emt 0:00:27]} O-O {[%emt 0:00:18]} 7. Be3 {[%emt 0:00:38]} c6 8. Qd2 {[%emt 0:00:33]} cxd5 {[%emt 0:00:43]} 9. Bh6 {[%emt 0:00:51]} dxe4 {[%emt 0:00:24]} 10. Bxg7 {[%emt 0:00:33]} Kxg7 11. hxg6 {[%emt 0:00:19]} fxg6 {[%emt 0:01:04]} 12. Qh6+ {[%emt 0:00:08]} Kf7 {[%emt 0:00:27]} 13. Qxh7+ {[%emt 0:00:28]} Ke6 {[%emt 0:00:21]} 14. Nxe4 {[%emt 0:01:21]} d5 {[%emt 0:00:18]} 15. O-O-O {[%emt 0:01:36]} Nbc6 {[%emt 0:00:37]} 16. g3 {[%emt 0:00:30]} Qe8 {[%emt 0:00:11]} 17. Bh3+ {[%emt 0:01:48]} Nf5 {[%emt 0:00:09]} 18. Nf3 {[%emt 0:02:02]} dxe4 {[%emt 0:00:14]} 19. Ng5+ {[%emt 0:01:52]} Kf6 20. Nxe4+ {[%emt 0:00:10]} Ke6 {[%emt 0:00:41]} 21. Rd6# {Kd5} 1-0

[Event "ROU-ch Men 2018"]
[Site "Olanesti"]
[Date "2018.05.18"]
[Round "5"]
[White "Stanciu, Alexandru-Ovidiu"]
[Black "Farcadi, Hunor"]
[Result "1-0"]
[ECO "A00"]
[WhiteElo "2363"]
[BlackElo "1959"]
[Annotator "NA"]
[PlyCount "61"]
[EventDate "2018.??.??"]
[EventType "swiss"]
[EventCountry "ROU"]
[SourceTitle "playchess.com"]
[Source "ChessBase"]
[SourceQuality "1"]
[TimeControl "40/5400+30:1800+30"]

1. g3 {[%emt 0:00:00]} d5 {[%emt 0:04:52]} 2. Bg2 {[%emt 0:00:46]} Nf6 {[%emt 0:00:14]} 3. c4 {[%emt 0:00:10]} c6 {[%emt 0:00:07]} 4. Nf3 {[%emt 0:00:33]} Bf5 {[%emt 0:03:33]} 5. d4 {[%emt 0:04:47]} e6 {[%emt 0:02:03]} 6. Nc3 {[%emt 0:00:42]} Be7 {[%emt 0:06:02]} 7. O-O {[%emt 0:03:46]} O-O {[%emt 0:00:40]} 8. b3 {[%emt 0:00:13]} Nbd7 {[%emt 0:04:20]} 9. Bb2 {[%emt 0:00:38]} a6 {[%emt 0:04:11]} 10. Nd2 {[%emt 0:04:33]} b5 {[%emt 0:06:18]} 11. e4 {[%emt 0:01:25]} dxe4 $11 {[%emt 0:00:57]} 12. Qe2 {[%emt 0:08:25]} Qb6 {[%emt 0:05:38]} 13. Ncxe4 {[%emt 0:25:16]} Rac8 {[%emt 0:05:32]} 14. c5 {[%emt 0:14:26]} Qc7 {[%emt 0:01:32]} 15. f3 {[%emt 0:00:40]} Rcd8 {[%emt 0:12:11]} 16. Rac1 {[%emt 0:02:32]} Rfe8 {[%emt 0:06:58]} 17. g4 {[%emt 0:03:25]} Bxe4 {[%emt 0:08:45]} 18. fxe4 {[%emt 0:00:45]} e5 {[%emt 0:00:33]} 19. g5 {[%emt 0:00:42]} exd4 {[%emt 0:02:09]} 20. Bxd4 {[%emt 0:16:46]} Ne5 {[%emt 0:09:02]} 21. Bxe5 {[%emt 0:00:59]} Qxe5 {[%emt 0:00:16]} 22. gxf6 {[%emt 0:00:22]} Bxf6 {[%emt 0:01:14]} 23. Nf3 {[%emt 0:01:21]} Qxe4 {[%emt 0:01:13]} 24. Qxe4 {[%emt 0:00:05]} Rxe4 {[%emt 0:00:05]} 25. Rfe1 {[%emt 0:00:51]} Rf4 {[%emt 0:03:15]} 26. Rcd1 {[%emt 0:04:03]} Rc8 {[%emt 0:00:32]} 27. Bh3 {[%emt 0:02:13]} Rf8 {[%emt 0:00:46]} 28. Kg2 {[%emt 0:00:06]} g5 {[%emt 0:00:29]} 29. Bd7 {[%emt 0:00:04]} g4 {[%emt 0:00:54]} 30. Ne5 {[%emt 0:00:16]} Bh4 {[%emt 0:03:53]} 31. Re2 {[%emt 0:00:49]} 1-0

[Event "ROU-ch Men 2018"]
[Site "Olanesti"]
[Date "2018.05.18"]
[Round "5"]
[White "Ileana, George"]
[Black "Dobre, Claudiu-Cristian"]
[Result "1-0"]
[ECO "A06"]
[WhiteElo "2325"]
[BlackElo "2393"]
[Annotator "NA"]
[PlyCount "99"]
[EventDate "2018.??.??"]
[EventType "swiss"]
[EventCountry "ROU"]
[SourceTitle "playchess.com"]
[Source "ChessBase"]
[SourceQuality "1"]
[TimeControl "40/5400+30:1800+30"]

1. Nf3 {[%emt 0:00:00]} d5 {[%emt 0:00:29]} 2. c4 {[%emt 0:00:00]} c6 {[%emt 0:00:16]} 3. e3 {[%emt 0:00:00]} Nf6 {[%emt 0:00:39]} 4. Nc3 {[%emt 0:00:00]} e6 {[%emt 0:00:22]} 5. b3 {[%emt 0:00:25]} Nbd7 {[%emt 0:00:51]} 6. Qc2 {[%emt 0:02:03]} Bd6 {[%emt 0:01:06]} 7. Bb2 {[%emt 0:00:34]} Qe7 {[%emt 0:02:15]} 8. Be2 {[%emt 0:01:18]} O-O {[%emt 0:15:10]} 9. d4 {[%emt 0:00:07]} b6 {[%emt 0:18:05]} 10. O-O {[%emt 0:01:17]} Bb7 $11 {[%emt 0:02:48]} 11. Rad1 {[%emt 0:00:58]} Rad8 {[%emt 0:14:43]} 12. e4 {[%emt 0:04:18]} Nxe4 {[%emt 0:00:08]} 13. Nxe4 {[%emt 0:00:06]} dxe4 {[%emt 0:00:03]} 14. Qxe4 {[%emt 0:00:08]} f5 {[%emt 0:00:03]} 15. Qe3 {[%emt 0:15:07]} c5 {[%emt 0:00:13]} 16. Qg5 {[%emt 0:14:12]} Nf6 {[%emt 0:05:24]} 17. Ne5 {[%emt 0:03:34]} cxd4 {[%emt 0:16:44]} 18. Bxd4 {[%emt 0:00:38]} Qc7 {[%emt 0:01:40]} 19. Qe3 {[%emt 0:00:42]} Ne4 {[%emt 0:00:53]} 20. f4 {[%emt 0:01:15]} Be7 {[%emt 0:03:05]} 21. Kh1 {[%emt 0:00:10]} Bc5 {[%emt 0:03:26]} 22. Bxc5 {[%emt 0:01:33]} Qxc5 {[%emt 0:00:06]} 23. Qxc5 {[%emt 0:00:10]} Nxc5 {[%emt 0:06:42]} 24. Bf3 {[%emt 0:00:14]} Bxf3 {[%emt 0:00:28]} 25. gxf3 {[%emt 0:00:09]} a5 {[%emt 0:00:54]} 26. Kg2 {[%emt 0:00:26]} Rb8 {[%emt 0:04:42]} 27. Rd6 {[%emt 0:03:59]} Rfd8 {[%emt 0:00:32]} 28. Rfd1 {[%emt 0:01:38]} Rxd6 {[%emt 0:00:20]} 29. Rxd6 {[%emt 0:00:09]} Kf8 {[%emt 0:00:40]} 30. Rc6 {[%emt 0:01:05]} Rb7 {[%emt 0:01:06]} 31. Kf2 {[%emt 0:02:43]} Ke7 {[%emt 0:00:16]} 32. Ke3 {[%emt 0:00:29]} Nd7 {[%emt 0:01:18]} 33. a3 {[%emt 0:04:23]} g5 {[%emt 0:00:30]} 34. b4 {[%emt 0:03:06]} axb4 {[%emt 0:00:25]} 35. axb4 {[%emt 0:00:06]} b5 {[%emt 0:01:02]} 36. c5 {[%emt 0:00:49]} Nf6 {[%emt 0:00:23]} 37. fxg5 {[%emt 0:01:40]} Nd5+ {[%emt 0:00:14]} 38. Kd4 {[%emt 0:01:13]} Ra7 {[%emt 0:00:52]} 39. Rc8 {[%emt 0:03:22]} Ra2 {[%emt 0:00:19]} 40. c6 {[%emt 0:00:00]} Rc2 {[%emt 0:00:42]} 41. Rh8 {[%emt 0:03:26]} Kd6 {[%emt 0:04:14]} 42. Rd8+ {[%emt 0:00:51]} Kc7 {[%emt 0:00:04]} 43. Rd7+ {[%emt 0:00:14]} Kb6 {[%emt 0:00:19]} 44. Rb7+ {[%emt 0:00:21]} Ka6 {[%emt 0:00:04]} 45. Rxh7 {[%emt 0:00:22]} Rd2+ {[%emt 0:02:39]} 46. Nd3 {[%emt 0:01:29]} Nxb4 {[%emt 0:05:24]} 47. Kc3 {[%emt 0:00:22]} Rxd3+ {[%emt 0:00:24]} 48. Kxb4 {[%emt 0:00:06]} Kb6 {[%emt 0:06:45]} 49. c7 {[%emt 0:01:01]} Kb7 {[%emt 0:00:10]} 50. g6 {[%emt 0:00:10]} 1-0

[Event "ROU-ch Men 2018"]
[Site "Olanesti"]
[Date "2018.05.18"]
[Round "5"]
[White "Pop, Alexandru"]
[Black "Neagu, Liviu"]
[Result "1-0"]
[ECO "B31"]
[WhiteElo "2302"]
[BlackElo "2025"]
[Annotator "NA"]
[PlyCount "82"]
[EventDate "2018.??.??"]
[EventType "swiss"]
[EventCountry "ROU"]
[SourceTitle "playchess.com"]
[Source "ChessBase"]
[SourceQuality "1"]
[TimeControl "40/5400+30:1800+30"]

1. e4 {[%emt 0:00:00]} c5 {[%emt 0:04:36]} 2. Nf3 {[%emt 0:00:00]} Nc6 {[%emt 0:00:15]} 3. Bb5 {[%emt 0:00:00]} g6 {[%emt 0:00:25]} 4. Bxc6 {[%emt 0:00:00]} bxc6 {[%emt 0:00:45]} 5. O-O {[%emt 0:00:09]} Nf6 {[%emt 0:05:40]} 6. Re1 {[%emt 0:00:07]} Bg7 {[%emt 0:00:38]} 7. e5 {[%emt 0:03:12]} Nd5 {[%emt 0:00:03]} 8. c4 {[%emt 0:01:36]} Nc7 {[%emt 0:00:09]} 9. d4 {[%emt 0:00:51]} cxd4 {[%emt 0:00:02]} 10. Qxd4 {[%emt 0:00:11]} Ne6 {[%emt 0:11:58]} 11. Qh4 {[%emt 0:00:25]} d5 {[%emt 0:05:37]} 12. exd6 {[%emt 0:00:43]} exd6 {[%emt 0:01:45]} 13. Bg5 {[%emt 0:00:11]} Qa5 {[%emt 0:02:18]} (13... f6 $14 14. Bh6 O-O 15. Bxg7 Nxg7) 14. Nc3 {[%emt 0:04:10]} O-O {[%emt 0:03:39]} 15. Be7 {[%emt 0:02:46]} d5 $18 {[%emt 0:06:28]} (15... Bxc3 $16 {keeps fighting.} 16. bxc3 Re8) 16. cxd5 {[%emt 0:01:30]} cxd5 {[%emt 0:00:16]} 17. Bb4 {[%emt 0:01:01]} Qd8 {[%emt 0:02:14]} 18. Bxf8 {[%emt 0:00:20]} Qxh4 {[%emt 0:03:31]} 19. Nxh4 {[%emt 0:00:07]} Kxf8 {[%emt 0:00:53]} 20. Nxd5 {[%emt 0:00:41]} Bxb2 {[%emt 0:00:57]} 21. Rab1 {[%emt 0:00:08]} Bg7 {[%emt 0:04:15]} 22. Nf3 {[%emt 0:00:16]} Ba6 {[%emt 0:02:37]} 23. Ne5 {[%emt 0:10:25]} Rd8 {[%emt 0:02:18]} 24. Nb4 {[%emt 0:00:24]} Bxe5 {[%emt 0:03:43]} 25. Nxa6 {[%emt 0:04:33]} Bd4 {[%emt 0:04:51]} 26. Rb8 {[%emt 0:00:45]} Rxb8 {[%emt 0:01:49]} 27. Nxb8 {[%emt 0:00:06]} Kg7 {[%emt 0:02:32]} 28. Nc6 {[%emt 0:00:13]} Bc5 {[%emt 0:00:17]} 29. Rd1 {[%emt 0:00:56]} Nf8 {[%emt 0:05:20]} 30. Rd8 {[%emt 0:00:16]} Ne6 {[%emt 0:05:06]} 31. Rd7 {[%emt 0:05:50]} Ng5 {[%emt 0:00:36]} 32. Nxa7 {[%emt 0:01:50]} Ne4 {[%emt 0:00:49]} 33. Kf1 {[%emt 0:01:14]} Nxf2 {[%emt 0:01:05]} 34. a4 {[%emt 0:00:45]} Kf6 {[%emt 0:02:37]} 35. Nb5 {[%emt 0:00:24]} Ke6 {[%emt 0:00:41]} 36. Rc7 {[%emt 0:00:20]} Ne4 {[%emt 0:00:09]} 37. a5 {[%emt 0:00:20]} Kd5 {[%emt 0:03:24]} 38. a6 {[%emt 0:00:41]} Bb6 {[%emt 0:00:22]} 39. a7 {[%emt 0:00:22]} Bxa7 {[%emt 0:00:31]} 40. Rxa7 {[%emt 0:00:00]} Ke6 {[%emt 0:00:32]} 41. Nd4+ {[%emt 0:00:25]} Kd5 1-0